[Event "German Bundesliga 2024-25"]
[Site "Germany"]
[Date "2025.01.11"]
[Round "5.10"]
[White "McShane, Luke J"]
[Black "Giri, Anish"]
[Result "1/2-1/2"]
[Annotator "TA"]
[ECO "B51"]
[WhiteElo "2609"]
[BlackElo "2733"]
[PlyCount "116"]
[EventDate "2024.09.27"]
[EventType "team-tourn"]
[EventCountry "GER"]
[SourceTitle "playchess.com"]
[Source "ChessBase"]
[SourceQuality "1"]
[WhiteTeam "Werder Bremen"]
[BlackTeam "Duesseldorf"]
[TimeControl "40/5400+30:1800+30"]

{[%evp 9,116,15,13,7,1,0,0,0,0,0,11,11,18,23,13,22,30,0,5,0,6,4,12,9,8,14,7,3,13,5,10,9,8,6,10,0,-3,-4,-3,0,0,0,0,0,0,0,0,0,0,-6,-3,-5,-5,-6,-5,-4,0,-2,-4,-9,-8,-3,-1,-13,-6,-11,0,0,0,-6,0,0,-2,-9,0,-10,0,0,0,0,0,0,0,0,0,0,0,0,0,0,0,0,0,0,0,0,0,0,0,0,0,0,0,0,0,0,0,0,0]} 1. e4 {[%emt 0:01:17]} c5 {[%emt 0:00:13]} 2. Nf3 {[%emt 0:00:06]} d6 {[%emt 0:00:10]} 3. Bb5+ {[%emt 0:01:26]} Nd7 {[%emt 0:00:22]} 4. d4 {[%emt 0:03:12]} cxd4 {[%emt 0:00:39]} 5. Qxd4 {[%emt 0:00:26]} a6 {[%emt 0:00:14]} 6. Be2 {[%emt 0:00:17]} Ngf6 {[%emt 0:00:45]} 7. O-O {[%emt 0:01:05]} e5 {[%emt 0:00:56]} 8. Qe3 {[%emt 0:00:05]} Nc5 {[%emt 0:00:21]} 9. Nfd2 {[%emt 0:02:27]} h5 {[%emt 0:06:09]} 10. a4 {[%emt 0:14:31]} g6 {[%emt 0:02:47]} 11. a5 {[%emt 0:01:43]} Bh6 {[%emt 0:04:35]} 12. Qa3 {[%emt 0:00:11]} O-O {[%emt 0:00:19][%cal Of8e8]} 13. Nc3 {[%emt 0:09:16]} Be6 {[%emt 0:03:22]} 14. Rd1 {[%emt 0:17:45]} Qc7 {[%emt 0:15:20]} 15. Nc4 {[%emt 0:21:26]} Bxc1 {[%emt 0:00:17]} 16. Raxc1 {[%emt 0:00:02]} Ncxe4 {[%emt 0:02:59]} 17. Nxe4 {[%emt 0:02:56]} Nxe4 {[%emt 0:00:07]} 18. Nxd6 {[%emt 0:00:05]} Nxd6 {[%emt 0:00:15]} 19. Qxd6 {[%emt 0:00:10]} Qxa5 {[%emt 0:10:07]} 20. Ra1 {[%emt 0:00:08]} Qd8 {[%emt 0:00:03]} 21. Qxe5 {[%emt 0:00:08]} Qe7 {[%emt 0:00:40]} 22. Bc4 {[%emt 0:11:06]} Rfe8 {[%emt 0:00:42][%cal Bf8e8,Be8e6,Be6b6][%mdl 32]} 23. Bxe6 {[%emt 0:00:04]} (23. Bd3 {with more complications.} Qb4 24. Qf6 Rad8 25. h3) 23... Qxe6 {[%emt 0:00:02]} 24. Qxe6 {[%emt 0:00:05]} Rxe6 $11 {[%emt 0:00:04][%mdl 4096] Endgame KRR-KRR} 25. Rd2 {[%emt 0:00:11] Repels Re2} Rc8 {[%emt 0:02:27]} 26. g3 {[%emt 0:00:31]} Rc5 {[%emt 0:01:29]} 27. Kg2 {[%emt 0:01:28]} Kg7 {[%emt 0:00:17]} 28. h4 {[%emt 0:01:09]} Rb6 {[%emt 0:00:11]} 29. c3 {[%emt 0:03:33]} Rcb5 {[%emt 0:04:25]} 30. Ra2 {[%emt 0:01:05]} Rb3 {[%emt 0:01:54]} 31. Kf3 {[%emt 0:00:22]} Re6 {[%emt 0:03:38]} 32. Ra4 {[%emt 0:02:12]} Reb6 {[%emt 0:04:30]} 33. Ra2 $1 {[%emt 0:00:05]} Kf6 {[%emt 0:00:42]} 34. Re2 {[%emt 0:03:21]} R6b5 {[%emt 0:01:30]} 35. Rd2 {[%emt 0:00:58]} Kf5 {[%emt 0:03:40]} 36. Re2 {[%emt 0:00:07]} f6 {[%emt 0:01:40][%cal Bf7f6,Bf6g5][%mdl 32]} 37. Kg2 {[%emt 0:01:49]} g5 {[%emt 0:04:12]} 38. hxg5 {[%emt 0:00:03]} fxg5 {[%emt 0:00:17]} 39. f3 {[%emt 0:00:22]} a5 {[%emt 0:08:19]} 40. Kf2 {[%emt 0:00:24]} b6 {[%emt 0:00:25]} 41. Kf1 {[%emt 0:04:37]} g4 {[%emt 0:10:15]} 42. Kf2 {[%emt 0:02:05]} Kg5 {[%emt 0:07:06]} 43. fxg4 {[%emt 0:00:42]} hxg4 {[%emt 0:01:10]} 44. Kg2 {[%emt 0:04:00]} Kf5 {[%emt 0:01:51]} 45. Kf2 {[%emt 0:00:37]} Re5 {[%emt 0:00:55]} 46. Rd2 {[%emt 0:00:38]} Kg5 {[%emt 0:02:33]} 47. Kg2 {[%emt 0:10:16]} Reb5 {[%emt 0:08:04]} 48. Rf2 {[%emt 0:01:23]} Rf5 {[%emt 0:01:57]} 49. Re2 {[%emt 0:00:27]} Rbb5 {[%emt 0:02:37]} 50. Ra4 {[%emt 0:01:04]} Rbe5 {[%emt 0:00:33]} 51. Rd2 {[%emt 0:00:58]} Rd5 {[%emt 0:01:41]} 52. Re2 {[%emt 0:00:10]} Rde5 {[%emt 0:00:11]} 53. Rd2 {[%emt 0:00:12]} Re1 {[%emt 0:03:17]} 54. Rad4 {[%emt 0:01:34]} Rfe5 {[%emt 0:00:09]} 55. Kf2 {[%emt 0:00:59]} Rh1 {[%emt 0:00:06]} 56. Kg2 {[%emt 0:00:38]} Rhe1 {[%emt 0:00:12]} 57. Kf2 {[%emt 0:00:07] Prevents R5e2+.} Rh1 {[%emt 0:00:02]} 58. Kg2 {[%emt 0:00:05]} Rhe1 {[%emt 0:00:04]} 1/2-1/2

[Event "German Bundesliga 2024-25"]
[Site "Germany"]
[Date "2025.01.11"]
[Round "5.10"]
[White "Pechac, Jergus"]
[Black "Indjic, Aleksandar"]
[Result "1/2-1/2"]
[Annotator "TA"]
[ECO "C42"]
[WhiteElo "2599"]
[BlackElo "2647"]
[PlyCount "118"]
[EventDate "2024.09.27"]
[EventType "team-tourn"]
[EventCountry "GER"]
[SourceTitle "playchess.com"]
[Source "ChessBase"]
[SourceQuality "1"]
[WhiteTeam "TU Dresden"]
[BlackTeam "Deggendorf"]
[TimeControl "40/5400+30:1800+30"]

{[%evp 46,118,50,38,41,38,45,60,73,68,87,9,66,79,75,83,68,0,67,25,25,22,25,27,90,0,84,76,64,56,82,56,71,41,94,63,67,15,47,59,70,0,0,0,0,0,-2,-8,0,0,0,0,0,0,0,0,21,23,20,0,0,0,10,0,0,0,0,0,0,0,24,29,17,0,0]} 1. e4 {[%emt 0:00:03]} e5 {[%emt 0:00:29]} 2. Nf3 {[%emt 0:00:05]} Nf6 {[%emt 0:00:54]} 3. Nxe5 {[%emt 0:03:22]} d6 {[%emt 0:00:15]} 4. Nf3 {[%emt 0:00:05]} Nxe4 {[%emt 0:00:08]} 5. d4 {[%emt 0:00:22]} d5 {[%emt 0:00:36]} 6. Bd3 {[%emt 0:00:05]} Bd6 {[%emt 0:01:05]} 7. O-O {[%emt 0:00:07]} O-O {[%emt 0:00:11]} 8. c4 {[%emt 0:00:04]} c6 {[%emt 0:00:11]} 9. Nc3 {[%emt 0:00:25]} Nxc3 {[%emt 0:01:25]} 10. bxc3 {[%emt 0:01:28]} dxc4 {[%emt 0:00:04]} 11. Bxc4 {[%emt 0:00:07]} Bg4 {[%emt 0:00:18]} 12. h3 {[%emt 0:00:30]} Bh5 {[%emt 0:00:16]} 13. g4 {[%emt 0:00:17]} Bg6 {[%emt 0:00:07]} 14. Ne5 {[%emt 0:00:03]} b5 {[%emt 0:00:09]} 15. Nxg6 {[%emt 0:18:18]} hxg6 {[%emt 0:00:15]} 16. Be2 {[%emt 0:00:06]} Nd7 {[%emt 0:07:01]} 17. Bf3 {[%emt 0:06:34]} Qc7 {[%emt 0:11:30]} 18. a4 {[%emt 0:00:17]} Rab8 {[%emt 0:04:37]} 19. Qd3 {[%emt 0:06:25]} bxa4 {[%emt 0:09:19]} 20. Rxa4 {[%emt 0:01:32]} Nb6 {[%emt 0:00:07]} 21. Ra6 {[%emt 0:02:36]} Qd7 {[%emt 0:04:17]} 22. Bd2 {[%emt 0:07:45]} Rbc8 {[%emt 0:00:15]} 23. Kg2 {[%emt 0:08:06]} Bb8 {[%emt 0:04:10]} 24. Rh1 {[%emt 0:01:19]} c5 {[%emt 0:00:07]} 25. d5 {[%emt 0:02:02]} c4 {[%emt 0:06:10]} 26. Qd4 {[%emt 0:00:30]} Rfd8 {[%emt 0:01:22] [#]} 27. Ra5 $1 {[%emt 0:07:13]} Qc7 {[%emt 0:09:36]} 28. Rb5 {[%emt 0:03:48]} (28. Be3 $16) 28... Re8 {[%emt 0:04:07]} (28... Qd7 $1 $11 29. Ra5 Qd6) 29. Be3 $14 {[%emt 0:04:13]} Qd7 {[%emt 0:03:25] [#]} 30. Ra5 $1 {[%emt 0:04:03]} Qd6 {[%emt 0:06:57]} 31. Ra6 {[%emt 0:07:07]} (31. h4 $14) 31... Re7 {[%emt 0:01:47]} (31... Rxe3 $11 32. Qxe3 Nxd5 33. Bxd5 Qxa6) 32. Bc1 {[%emt 0:06:09]} Rd7 $1 {[%emt 0:01:50]} 33. Ra5 {[%emt 0:01:18]} Rcd8 {[%emt 0:05:30]} 34. Bg5 {[%emt 0:00:56]} Re8 {[%emt 0:00:53]} (34... f6 $1 $11 35. Be3 f5) 35. Bc1 {[%emt 0:02:52]} (35. h4 $16) 35... Qc7 {[%emt 0:04:20]} (35... Red8 $1 $11 {remains equal.}) 36. Be3 {[%emt 0:02:52]} Rde7 {[%emt 0:01:45]} 37. Bg5 {[%emt 0:01:43]} Rd7 {[%emt 0:02:47]} 38. Rc5 {[%emt 0:00:29]} Qd6 {[%emt 0:00:17]} 39. Rc6 {[%emt 0:00:53]} Qa3 {[%emt 0:04:54]} (39... Qe5 $14 40. h4 Qxd4 41. cxd4 f6) 40. Bc1 {[%emt 0:01:11]} Qe7 {[%emt 0:02:25]} 41. Rd1 {[%emt 0:05:49]} (41. Be3 $14) 41... Be5 {[%emt 0:04:37]} 42. Qe3 {[%emt 0:05:17]} Qd8 {[%emt 0:00:30]} 43. Re1 {[%emt 0:03:30]} ({White should play} 43. Qd2 $14) 43... Ree7 $11 {[%emt 0:01:06]} ({Much weaker is} 43... Nxd5 44. Qe4 $14) 44. Rd1 {[%emt 0:05:15]} Nxd5 {[%emt 0:09:07]} 45. Qc5 {[%emt 0:04:24]} Nb6 {[%emt 0:00:19]} 46. Bg5 {[%emt 0:00:52]} f6 {[%emt 0:00:12]} 47. Rxd7 {[%emt 0:00:46]} Qxd7 {[%emt 0:00:06]} 48. Be3 {[%emt 0:00:17]} Re6 {[%emt 0:04:21]} 49. Qb5 {[%emt 0:02:07]} Rxc6 {[%emt 0:00:08]} 50. Bxc6 {[%emt 0:00:30]} Qd6 {[%emt 0:01:07]} 51. Be4 {[%emt 0:01:06]} Qd7 $1 {[%emt 0:04:24]} 52. Bc6 {[%emt 0:01:25]} (52. Qxd7 Nxd7 53. Bxa7 Bxc3 54. Bxg6 Ne5 55. Be4) 52... Qd6 {[%emt 0:01:54]} 53. Bc5 {[%emt 0:01:34]} Qd8 {[%emt 0:03:41]} 54. h4 {[%emt 0:04:22]} (54. Bxb6 {simplifies} axb6 55. Qxc4+ Kh7 56. Qe4) 54... Qc8 {[%emt 0:01:25]} (54... Bxc3 $2 {too greedy.} 55. Bxb6 axb6 56. Qxc4+ Kh7 57. Qxc3 $18) 55. Kh3 {[%emt 0:01:58]} f5 {[%emt 0:00:32]} 56. f3 {[%emt 0:00:25]} fxg4+ {[%emt 0:03:00]} 57. fxg4 {[%emt 0:00:01]} Qd8 {[%emt 0:02:59]} 58. Be4 {[%emt 0:00:05]} Kh8 {[%emt 0:01:38]} 59. Bxb6 {[%emt 0:00:19]} (59. Qc6 $5 Nd7 $8 60. Bxa7 $14 (60. Bxg6 Nxc5 61. Qxc5 Qa8 $11)) 59... Qxb6 {[%emt 0:00:07]} 1/2-1/2

[Event "German Bundesliga 2024-25"]
[Site "Germany"]
[Date "2025.01.11"]
[Round "5.11"]
[White "Sindarov, Javokhir"]
[Black "Areshchenko, Alexander"]
[Result "1-0"]
[Annotator "TA"]
[ECO "D85"]
[WhiteElo "2682"]
[BlackElo "2606"]
[PlyCount "105"]
[EventDate "2024.09.27"]
[EventType "team-tourn"]
[EventCountry "GER"]
[SourceTitle "playchess.com"]
[Source "ChessBase"]
[SourceQuality "1"]
[WhiteTeam "Duesseldorf"]
[BlackTeam "Werder Bremen"]
[TimeControl "40/5400+30:1800+30"]

{[%evp 46,105,12,0,0,0,0,-1,-8,-8,-2,-26,0,-37,-12,-16,-20,-37,-22,-14,0,0,0,0,0,0,0,-8,0,0,-8,-19,0,-7,-7,-135,-128,-134,-86,-91,-96,-84,-36,-36,0,-8,0,-46,-50,-50,-43,-51,0,0,0,0,0,0,0,0,0,0]} 1. d4 {[%emt 0:00:28]} Nf6 {[%emt 0:00:20]} 2. c4 {[%emt 0:00:20]} g6 {[%emt 0:02:22]} 3. Nc3 {[%emt 0:00:18]} d5 {[%emt 0:00:08]} 4. cxd5 {[%emt 0:00:08]} Nxd5 {[%emt 0:00:04]} 5. e4 {[%emt 0:00:07]} Nxc3 {[%emt 0:00:06]} 6. bxc3 {[%emt 0:00:05]} Bg7 {[%emt 0:00:03]} 7. Nf3 {[%emt 0:00:09]} c5 {[%emt 0:01:01]} 8. Bb5+ {[%emt 0:00:09]} Nc6 {[%emt 0:02:12]} 9. O-O {[%emt 0:00:10]} O-O {[%emt 0:05:28]} 10. Bxc6 {[%emt 0:00:12]} bxc6 {[%emt 0:00:04]} 11. Qc2 {[%emt 0:00:06]} cxd4 {[%emt 0:06:12]} 12. cxd4 {[%emt 0:00:07]} Bg4 {[%emt 0:01:42]} 13. Ne5 {[%emt 0:00:08]} Qxd4 {[%emt 0:03:20]} 14. Bb2 {[%emt 0:00:07]} Qb6 {[%emt 0:05:19]} 15. Rab1 {[%emt 0:00:06]} Bxe5 {[%emt 0:00:12]} 16. Bxe5 {[%emt 0:00:08]} Qa5 {[%emt 0:00:35]} 17. Bc3 {[%emt 0:00:11]} Qc5 {[%emt 0:01:08]} 18. h3 {[%emt 0:00:09]} Be6 {[%emt 0:00:32]} 19. Kh2 {[%emt 0:00:04]} Rab8 {[%emt 0:06:16]} 20. Rbc1 {[%emt 0:00:09]} f6 {[%emt 0:05:34]} 21. f4 {[%emt 0:00:49]} Bf7 {[%emt 0:04:07]} 22. Rf3 {[%emt 0:00:51]} Qc4 {[%emt 0:06:31]} 23. f5 {[%emt 0:09:28]} Qxa2 {[%emt 0:08:41]} 24. Qd1 {[%emt 0:00:21]} g5 {[%emt 0:06:53]} 25. Rg3 {[%emt 0:03:33]} Qf2 {[%emt 0:04:32]} 26. Rf3 {[%emt 0:13:07]} Qb6 {[%emt 0:05:09]} 27. Qe1 {[%emt 0:00:31]} Qc7+ {[%emt 0:00:26]} 28. Rg3 {[%emt 0:01:04]} Qf4 {[%emt 0:09:39]} 29. Rc2 {[%emt 0:11:16]} Rb3 {[%emt 0:02:11]} 30. Rf2 {[%emt 0:04:43]} (30. e5 $5) 30... Qb8 {[%emt 0:00:08]} 31. e5 {[%emt 0:00:22]} Rd8 {[%emt 0:02:02]} 32. Rd2 {[%emt 0:13:00]} (32. exf6 $2 exf6 33. Qe3 h5 $19) (32. e6 $2 Rb1 33. exf7+ Kf8 $19) 32... Rd5 {[%emt 0:07:25]} (32... Kf8 {feels hotter.} 33. exf6 exf6 34. Bb4+ Kg8) 33. Rxd5 {[%emt 0:06:18]} Bxd5 {[%emt 0:00:06]} 34. h4 {[%emt 0:00:23]} (34. exf6 exf6 35. h4 h5 36. Bxf6 Qxg3+ 37. Qxg3 Rxg3 38. Kxg3 g4 $17) 34... h6 {[%emt 0:01:10]} 35. Qe2 {[%emt 0:01:00]} (35. exf6 {simplifies} exf6 36. hxg5 hxg5 37. Bxf6 Rxg3 38. Qxg3 Qxg3+ 39. Kxg3 Kf7 40. Bxg5 Be4 41. Kf4) 35... Bf7 {[%emt 0:04:15]} 36. Qf3 {[%emt 0:00:46]} Qb6 {[%emt 0:01:28]} (36... fxe5 37. hxg5 (37. Qxc6 Qd6 $16) 37... hxg5 38. Qxc6 (38. Rxg5+ Kf8 $11)) 37. hxg5 {[%emt 0:04:25]} hxg5 {[%emt 0:00:02]} 38. Qg4 {[%emt 0:00:08]} Qf2 {[%emt 0:01:34]} 39. e6 {[%emt 0:04:52]} Be8 {[%emt 0:00:29]} 40. Rd3 {[%emt 0:00:06]} (40. Rh3 $1 $11 {keeps the balance.} Qf4+ 41. Qxf4 gxf4 42. g4) 40... Rb1 $1 $17 {[%emt 0:00:27]} 41. Rd8 {[%emt 0:36:03]} Kf8 {[%emt 0:09:45]} (41... Qg1+ $142 42. Kg3 Kf8) 42. Qd4 $17 {[%emt 0:00:00] [#]} Qxd4 $1 {[%emt 0:06:24]} (42... Qxf5 $6 43. Rxe8+ Kxe8 44. Qd7+ Kf8 45. Qd8+ Kg7 46. Qxe7+ Kh6 47. Qf8+ (47. Qxf6+ $2 Qxf6 48. Bxf6 Re1 $19) 47... Kh7 (47... Kh5 48. Qh8+ Kg6 49. Qg8+ Kh5 50. Qh8+ Kg6 51. Qe8+ Kg7 52. Qf7+ Kh6 53. Qf8+ Kh5 54. Qh8+ $11) 48. Qf7+ Kh6 49. Qf8+ Kg6 50. Qf7+ Kh6 51. Qf8+ $11) 43. Rxd4 {[%emt 0:00:00] [#]} (43. Bxd4 $2 {is the wrong capture.} Rd1 $19) 43... Rc1 {[%emt 0:02:01]} (43... Rb3 $1 $17 {[%cal Rb3c3]} 44. Bb4 a5) 44. Bd2 $1 $15 {[%emt 0:00:00]} Ra1 {[%emt 0:08:27]} 45. Be3 $1 {[%emt 0:00:00]} a5 {[%emt 0:01:55]} 46. Rd3 {[%emt 0:00:00]} (46. Rc4 $11) 46... a4 $15 {[%emt 0:01:07]} 47. Bc5 {[%emt 0:00:00]} Rc1 {[%emt 0:01:25]} 48. Ba3 {[%emt 0:00:00]} Rc2 {[%emt 0:00:47]} ({Black should try} 48... Rc4 $15 49. Rh3 Kg7 (49... Rh4 50. Rxh4 gxh4 51. Bc5 $11) 50. Bxe7 c5) 49. Rh3 $1 $11 {[%emt 0:00:00]} Kg7 {[%emt 0:00:11]} 50. Bxe7 {[%emt 0:00:00]} c5 {[%emt 0:01:12]} 51. Rd3 $1 {[%emt 0:00:00]} Bc6 {[%emt 0:00:40]} 52. Rd7 $1 {[%emt 0:00:00]} Rxg2+ {[%emt 0:01:17]} 53. Kh3 {[%emt 0:00:00]} 1-0

[Event "German Bundesliga 2024-25"]
[Site "Germany"]
[Date "2025.01.11"]
[Round "5.11"]
[White "Sankalp Gupta"]
[Black "Vogel, Roven"]
[Result "0-1"]
[Annotator "TA"]
[ECO "B33"]
[WhiteElo "2550"]
[BlackElo "2558"]
[PlyCount "102"]
[EventDate "2024.09.27"]
[EventType "team-tourn"]
[EventCountry "GER"]
[SourceTitle "playchess.com"]
[Source "ChessBase"]
[SourceQuality "1"]
[WhiteTeam "Deggendorf"]
[BlackTeam "TU Dresden"]
[TimeControl "40/5400+30:1800+30"]

{[%evp 25,102,-1,-5,-12,-6,-64,-51,-50,-51,-44,-52,-66,-44,-81,-67,-81,-104,-95,-86,-104,-92,-266,-268,-341,-314,-317,-289,-301,-310,-404,-379,-402,-397,-393,-166,-169,-124,-216,-220,-197,-218,-198,-181,-247,-252,-250,-241,-320,-255,-232,-225,-195,-172,-178,-107,-290,-285,-270,-303,-308,-312,-343,-347,-419,-420,-422,-407,-459,-471,-464,-444,-475,-453,-458,-447,-477,-473,-480,-498]} 1. e4 {[%emt 0:00:08]} c5 {[%emt 0:00:09]} 2. Nf3 {[%emt 0:00:25][%cal Bg1f3,Bf3d4,Bd4b5][%mdl 32]} Nc6 {[%emt 0:00:09]} 3. d4 {[%emt 0:02:20]} cxd4 {[%emt 0:00:08]} 4. Nxd4 {[%emt 0:00:02]} Nf6 {[%emt 0:00:12]} 5. Nc3 {[%emt 0:00:18]} e5 {[%emt 0:00:09]} 6. Ndb5 {[%emt 0:00:09]} d6 {[%emt 0:00:06]} 7. Nd5 {[%emt 0:03:32]} Nxd5 {[%emt 0:00:29]} 8. exd5 {[%emt 0:00:03]} Nb8 {[%emt 0:00:11]} 9. a4 {[%emt 0:03:17]} Be7 {[%emt 0:00:23]} 10. Be2 {[%emt 0:01:52]} O-O {[%emt 0:00:09]} 11. O-O {[%emt 0:00:06]} Nd7 {[%emt 0:01:17]} 12. a5 {[%emt 0:08:02] 12.b4 is the modern continuation.} a6 {[%emt 0:01:43]} 13. Nc3 {[%emt 0:00:15]} f5 {[%emt 0:05:39]} 14. b4 {[%emt 0:04:19] B33: Sicilian: Pelikan and Sveshnikov Variations.} e4 {[%emt 0:00:07]} 15. f3 {[%emt 0:08:37]} (15. Na4 $11) 15... Bf6 {[%emt 0:03:16]} 16. Ra3 {[%emt 0:01:32] Black is slightly better.} exf3 {[%emt 0:05:07]} 17. Bxf3 {[%emt 0:06:15]} Qc7 $146 {[%emt 0:04:50]} (17... Ne5 18. Ne2 Bd7 19. Nd4 Qe7 20. Be2 g6 21. Rg3 Kh8 22. Kh1 Rac8 23. Re3 Qf7 {½-½ Kniazev,A (2286)-Khakimov,T (2132) RUS-Cup04 Samara 2002 (3)}) 18. Ne2 {[%emt 0:05:10]} Qc4 {[%emt 0:11:23] Prevents Nd4.} 19. Qd2 {[%emt 0:02:17]} Ne5 {[%emt 0:02:02] Black is more active.} 20. Rc3 {[%emt 0:13:40]} Nxf3+ {[%emt 0:02:44]} (20... Qxb4 $2 21. Rxc8 Qxd2 22. Rxf8+ Rxf8 23. Bxd2 $18) 21. Rfxf3 {[%emt 0:01:59]} Bxc3 {[%emt 0:04:34]} 22. Rxc3 {[%emt 0:00:02]} Qh4 {[%emt 0:01:54][%cal Oc8d7]} (22... Qxb4 23. Rxc8 Qxd2 24. Rxf8+ Rxf8 25. Bxd2 $16) 23. Bb2 $2 {[%emt 0:03:26]} (23. Rh3 $17 Qf6 24. Nf4) 23... Qxb4 $19 {[%emt 0:04:33]} 24. Qc1 {[%emt 0:00:29]} Rf7 {[%emt 0:03:21][%cal Oc8d7]} (24... Qxa5 25. Rg3 Rf7 (25... Qxd5 26. Rxg7+ Kh8 27. Re7+) 26. h3 $19) 25. Rb3 {[%emt 0:03:20]} Qc5+ {[%emt 0:04:02]} 26. Bd4 {[%emt 0:00:02]} Qxd5 {[%emt 0:00:23][%cal Of5f4]} 27. c4 {[%emt 0:00:19]} Qxa5 {[%emt 0:01:48]} 28. Nf4 {[%emt 0:01:37]} Bd7 {[%emt 0:01:45]} 29. Ra3 {[%emt 0:02:11]} Ba4 {[%emt 0:08:16]} (29... Qc7 $142 30. h3 Qd8) 30. Nd5 {[%emt 0:02:43] Hoping for Bb6.} Re8 {[%emt 0:05:55][%cal Ba8e8,Be8e4,Be4c4][%mdl 32]} 31. Kf1 {[%emt 0:03:51] [#] Repels Re1+} (31. Ra1 $17 {was forced.} Rfe7 32. Nxe7+ Rxe7 33. h3) 31... Qd8 $1 {[%emt 0:02:21]} 32. Rxa4 {[%emt 0:00:15]} Qh4 {[%emt 0:02:31][%csl LRd4,LRh2]} 33. Bg1 {[%emt 0:06:39]} Re4 {[%emt 0:01:58]} 34. h3 {[%emt 0:02:49] [#]} (34. Qd1 $142) 34... f4 $1 {[%emt 0:02:36]} 35. Bf2 {[%emt 0:03:20] Against Qg3} Qh5 {[%emt 0:01:16]} 36. Qb1 {[%emt 0:06:22]} Qe2+ {[%emt 0:02:58]} 37. Kg1 {[%emt 0:00:02]} Rxc4 {[%emt 0:00:51]} 38. Ra2 {[%emt 0:05:29]} Qe5 {[%emt 0:03:26]} 39. Qd1 {[%emt 0:01:22]} Rf5 {[%emt 0:03:11]} (39... f3 $19 {Hoping for ...fxg2.} 40. gxf3 Rf5) 40. Ra5 $2 {[%emt 0:01:20]} (40. Rd2 $17 {is a better defense.}) 40... Kh8 {[%emt 0:07:05]} 41. Nb6 {[%emt 0:09:57]} Qxa5 {[%emt 0:00:41]} 42. Nxc4 {[%emt 0:00:02]} Qd5 {[%emt 0:01:07]} 43. Qe2 {[%emt 0:02:08]} h6 {[%emt 0:02:30]} 44. Qe8+ {[%emt 0:01:23]} Kh7 {[%emt 0:00:18][%cal Of5g5]} 45. Nb6 {[%emt 0:00:01]} Qd1+ {[%emt 0:04:28]} 46. Kh2 {[%emt 0:00:01]} Qc2 {[%emt 0:00:17][%cal Of5e5] Black is clearly winning. Inhibits Qe4.} 47. Nc8 {[%emt 0:12:09] White wants to mate with Ne7.} Qc6 {[%emt 0:06:37]} ({Weaker is} 47... Qxf2 48. Qe4 $17) 48. Qxc6 {[%emt 0:01:11]} bxc6 {[%emt 0:00:01]} 49. Nxd6 {[%emt 0:00:01]} Rd5 {[%emt 0:00:50]} 50. Ne4 {[%emt 0:00:02]} a5 {[%emt 0:00:40]} 51. Nc5 {[%emt 0:00:01]} Rd2 {[%emt 0:01:53] Weighted Error Value: White=0.36/Black=0.17 (very precise)   Loses game:     	White=2     	---        Mistake:       	White=3     	Black=2      Inaccurate:     	White=3     	---        OK:         	White=12    	Black=23     Best:        	White=2     	Black=2      Strong:       	---       	Black=2} 0-1

[Event "German Bundesliga 2024-25"]
[Site "Germany"]
[Date "2025.01.11"]
[Round "5.12"]
[White "Nisipeanu, Liviu-Dieter"]
[Black "Petrov, Martin"]
[Result "1/2-1/2"]
[Annotator "TA"]
[ECO "B52"]
[WhiteElo "2596"]
[BlackElo "2550"]
[PlyCount "40"]
[EventDate "2024.09.27"]
[EventType "team-tourn"]
[EventCountry "GER"]
[SourceTitle "playchess.com"]
[Source "ChessBase"]
[SourceQuality "1"]
[WhiteTeam "TU Dresden"]
[BlackTeam "Deggendorf"]
[TimeControl "40/5400+30:1800+30"]

{[%evp 16,40,19,0,0,0,0,0,0,0,0,0,0,0,0,0,0,0,0,0,0,-13,0,0,0,0,0]} 1. e4 {[%emt 0:00:05]} c5 {[%emt 0:00:13]} 2. Nf3 {[%emt 0:00:06]} d6 {[%emt 0:00:07]} 3. Bb5+ {[%emt 0:00:21]} Bd7 {[%emt 0:01:21]} 4. Bxd7+ {[%emt 0:00:21]} Nxd7 {[%emt 0:00:30]} 5. O-O {[%emt 0:07:48]} e6 {[%emt 0:00:15]} 6. Qe2 {[%emt 0:04:02]} Be7 {[%emt 0:00:32]} 7. c3 {[%emt 0:01:17]} Ngf6 {[%emt 0:00:10][%cal Bg8f6,Bf6d5,Bd5b4][%mdl 32]} 8. d4 {[%emt 0:00:07]} O-O {[%emt 0:01:30]} 9. Rd1 {[%emt 0:05:36]} Qc7 {[%emt 0:17:15]} 10. e5 {[%emt 0:18:21]} dxe5 {[%emt 0:00:22]} 11. dxe5 {[%emt 0:00:08]} Nd5 $1 {[%emt 0:00:30]} 12. c4 {[%emt 0:01:04]} Nb4 {[%emt 0:00:06]} 13. Nc3 {[%emt 0:00:18]} a6 {[%emt 0:13:53] Dodges Nb5} 14. Bf4 {[%emt 0:05:37]} Rfd8 {[%emt 0:01:17]} 15. h4 {[%emt 0:18:09]} Nf8 {[%emt 0:00:11]} 16. h5 {[%emt 0:00:07]} Rxd1+ {[%emt 0:05:39]} 17. Rxd1 {[%emt 0:00:06]} Rd8 {[%emt 0:00:03]} 18. a3 {[%emt 0:16:51] aiming for Rxd8.} Rxd1+ {[%emt 0:02:09]} 19. Qxd1 {[%emt 0:00:27]} (19. Nxd1 $5 Nc6 $8 20. Nc3 $11) 19... Nc6 {[%emt 0:00:06]} 20. Ne4 {[%emt 0:01:54]} Qd7 {[%emt 0:05:38]} 1/2-1/2